fUSD/lending_fUSD_20250105
["ID","MTS","AMOUNT","RATE_DAILY","PERIOD"]
[347662353,1736037035788,-500.0,0.00011369,2]
[347662354,1736037035797,-1000.0,0.000114,2]
[347662355,1736037035807,-230.0,0.000114,2]
[347662356,1736037035817,-800.0,0.000114,4]
[347662357,1736037035826,-365.0,0.000114,2]
[347662358,1736037035836,-200.0,0.0001147,2]
[347662359,1736037035845,-800.0,0.000115,4]
[347662360,1736037035855,-500.0,0.00011506,2]
[347662361,1736037035864,-1000.0,0.00011506,2]
[347662362,1736037035874,-2751.0,0.00011507,2]
[347662363,1736037035883,-202.0,0.0001153,2]
[347662364,1736037035893,-200.0,0.0001153,2]
[347662365,1736037035903,-155.70293723,0.0001153,2]
[347662366,1736037035912,-431.69,0.00011569,2]
[347662367,1736037035924,-150.0,0.00011572,2]
[347662368,1736037035935,-150.0,0.00011575,2]
[347662369,1736037035944,-150.0,0.00011578,2]
[347662370,1736037035954,-800.0,0.000116,4]
[347662371,1736037035965,-150.0,0.00011604,2]
[347662372,1736037035975,-150.0,0.00011615,2]
[347662373,1736037035985,-152.0,0.00011619,3]
[347662374,1736037035996,-150.0,0.00011619,2]
[347662375,1736037036006,-150.0,0.00011625,2]
[347662376,1736037036016,-237.32201431,0.00011625,2]
[347662377,1736037036025,-150.0,0.00011636,2]
[347662378,1736037036035,-646.04,0.00011643,2]
[347662379,1736037036045,-500.0,0.00011643,2]
[347662380,1736037036055,-560.07,0.00011643,2]
[347662381,1736037036064,-500.0,0.00011643,2]
[347662382,1736037036073,-640.91,0.00011643,2]
[347662383,1736037036083,-500.0,0.00011643,2]
[347662384,1736037036094,-296.56,0.00011643,2]
[347662385,1736037036103,-571.03,0.00011643,2]
[347662386,1736037036112,-500.0,0.00011643,2]
[347662387,1736037036122,-751.74,0.00011643,2]
[347662388,1736037036132,-500.0,0.00011643,2]
[347662389,1736037036141,-500.0,0.00011643,2]
[347662390,1736037036151,-529.3,0.00011643,2]
[347662391,1736037036161,-500.0,0.00011643,2]
[347662392,1736037036171,-150.0,0.00011679,2]
[347662393,1736037036180,-150.0,0.0001168,2]
[347662394,1736037036190,-150.0,0.00011698,2]
[347662395,1736037036200,-800.0,0.000117,4]
[347662396,1736037036209,-150.0,0.00011706,2]
[347662397,1736037036219,-151.0,0.00011723,2]
[347662398,1736037036228,-401.69135435,0.00011723,2]
[347662399,1736037036437,-2606.44216162,0.00011723,2]
[347662400,1736037036450,-3538.9389726,0.00011723,2]
[347662401,1736037036463,-1979.46335,0.00011723,2]
[347662402,1736037036475,-2299.07018082,0.00011723,2]
[347662403,1736037036491,-336.5862505,0.00011723,2]
[347662421,1736037037534,-605.33954763,0.00011723,2]
[347662423,1736037037545,-355.17091682,0.00011723,2]
[347662425,1736037037556,-759.499977,0.00011723,2]
[347662427,1736037037567,-4869.19156278,0.00011723,2]
[347662432,1736037037591,-7301.64756,0.00011723,2]
[347662439,1736037037648,-5179.25397383,0.00011723,2]
[347662440,1736037037660,-6919.59999994,0.00011723,2]
[347662443,1736037037706,-1940.53802538,0.00011723,2]
[347662448,1736037037763,-544.32727247,0.00011723,2]
[347662449,1736037037775,-2669.79116892,0.00011723,2]
[347662487,1736037039619,-3459.33503363,0.00011723,2]
[347662488,1736037039631,-680.30861965,0.00011723,2]
[347662489,1736037039643,-25072.36948423,0.00011723,2]
[347662619,1736037042667,-500.0,9.999e-05,2]
[347662620,1736037042677,-234.65,0.00010137,2]
[347662621,1736037042687,-406.26,0.00010273,2]
[347662622,1736037042696,-208.12038877,0.00011723,2]
[347662623,1736037042779,-3536.28,0.00011723,2]
[347662624,1736037042839,-3794.80698898,0.00011723,2]
[347662625,1736037043007,-6031.29735747,0.00011723,2]
[347662626,1736037043023,-2285.61114635,0.00011723,2]
[347662634,1736037045577,-3733.84155319,0.00011723,2]
[347662635,1736037045588,-397.02350146,0.00011723,2]
[347662636,1736037045601,-626.04759607,0.00011723,2]
[347662637,1736037045688,-1841.43841953,0.00011723,2]
[347662638,1736037045700,-113341.96763601,0.00011723,2]
[347662639,1736037045713,-177.853907,0.00011725,2]
[347662640,1736037045724,-1959.92855809,0.0001173,2]
[347662641,1736037045736,-170.14803536,0.0001173,2]
[347662642,1736037045746,-155.70293723,0.0001174,2]
[347662643,1736037045758,-72160.20920527,0.00011764,2]
[347662644,1736037045770,-8707.31348448,0.00011764,2]
[347662645,1736037045794,-7880.0,0.00011764,2]
[347662646,1736037045806,-7646.37243251,0.00011764,2]
[347662647,1736037045817,-550.85,0.00011764,2]
[347662648,1736037045828,-8471.04923577,0.00011764,2]
[347662649,1736037045839,-59484.56702259,0.00011764,2]
[347662650,1736037045862,-2263.0641,0.00011764,2]
[347662830,1736037084584,3000.0,0.0002,120]
[347662844,1736038231831,-509.22801043,8.598e-05,2]
[347662845,1736038231887,-764.09346099,8.598e-05,2]
[347662846,1736038231899,-177.12852858,8.598e-05,2]
[347662847,1736038231908,-800.0,8.766e-05,2]
[347662848,1736038231917,-500.0,8.766e-05,2]
[347662849,1736038231926,-2091.74311663,9.686e-05,2]
[347662850,1736038232051,-4624.16756076,9.686e-05,2]
[347662851,1736038232060,-150.0,9.973e-05,2]
[347662852,1736038232069,-313.80455488,9.999e-05,2]
[347662853,1736038232078,-500.0,9.999e-05,2]
[347662854,1736038232087,-500.0,9.999e-05,2]
[347662855,1736038232096,-500.0,9.999e-05,2]
[347662856,1736038232105,-800.0,0.00010136,2]
[347662857,1736038232114,-2014.0,0.00010176,2]
[347662858,1736038232123,-492.578,0.00010176,2]
[347662859,1736038232132,-309.44988436,0.00010176,2]
[347662860,1736038232144,-1276.63304039,0.00010176,2]
[347662861,1736038232167,-468.43921911,0.00010176,2]
[347662878,1736038237855,-464.30585614,0.00010176,2]
[347662879,1736038237865,-3176.405,0.00010176,2]
[347662880,1736038237875,-150.0,0.00010176,2]
[347662881,1736038237885,-152.7,0.00010176,2]
[347662882,1736038237896,-500.0,0.00010273,2]
[347662883,1736038237906,-500.0,0.00010273,2]
[347662884,1736038237915,-1000.0,0.00010375,2]
[347662885,1736038237924,-477.67,0.00010422,2]
[347662886,1736038237934,-250.0,0.00010427,2]
[347662887,1736038237943,-250.0,0.00010477,2]
[347662888,1736038237952,-9140.39,0.00010494,2]
[347662889,1736038237962,-962.625,0.00010509,2]
[347662890,1736038237973,-500.0,0.00010547,2]
[347662891,1736038237983,-500.0,0.00010547,2]
[347662892,1736038237993,-272.41,0.0001059,2]
[347662893,1736038238002,-12105.21827072,0.00010628,4]
[347662894,1736038238011,-150.0,0.00010775,2]
[347662895,1736038238021,-165.42,0.00010811,2]
[347662896,1736038238030,-500.0,0.00010821,2]
[347662897,1736038238039,-500.0,0.00010821,2]
[347662898,1736038238048,-1450.45,0.00010862,2]
[347662899,1736038238058,-400.0,0.000109,3]
[347662900,1736038238067,-400.0,0.00010986,2]
[347662902,1736038238076,-1947.6887,0.00010986,2]
[347662904,1736038238085,-550.0,0.00011,2]
[347662906,1736038238095,-800.0,0.00011,4]
[347662908,1736038238104,-500.0,0.00011095,2]
[347662910,1736038238114,-500.0,0.00011095,2]
[347662912,1736038238123,-1300.0,0.000111,4]
[347662914,1736038238132,-396.806,0.0001117,2]
[347662916,1736038238142,-1700.0,0.000112,4]
[347662918,1736038238151,-2200.0,0.000113,4]
[347662920,1736038238161,-631.0,0.00011308,2]
[347662922,1736038238170,-500.0,0.00011369,2]
[347662923,1736038238179,-500.0,0.00011369,2]
[347662925,1736038238188,-1000.0,0.000114,2]
[347662927,1736038238198,-230.0,0.000114,2]
[347662929,1736038238207,-400.0,0.000114,4]
[347662931,1736038238216,-365.0,0.000114,2]
[347662933,1736038238225,-200.0,0.0001147,2]
[347662934,1736038238234,-400.0,0.000115,4]
[347662935,1736038238243,-500.0,0.00011506,2]
[347662936,1736038238252,-800.0,0.00011506,2]
[347662937,1736038238262,-2751.0,0.00011507,2]
[347662938,1736038238271,-151.81,0.00011528,2]
[347662939,1736038238281,-293.502008,0.00011528,2]
[347662940,1736038238290,-150.0,0.00011579,2]
[347662941,1736038238299,-150.0,0.00011585,2]
[347662942,1736038238309,-150.0,0.0001159,2]
[347662943,1736038238318,-400.0,0.000116,4]
[347662944,1736038238328,-150.0,0.00011605,2]
[347662945,1736038238337,-150.0,0.0001162,2]
[347662946,1736038238346,-150.0,0.0001163,2]
[347662947,1736038238355,-150.0,0.00011636,2]
[347662948,1736038238365,-500.0,0.00011643,2]
[347662949,1736038238374,-500.0,0.00011643,2]
[347662950,1736038238385,-150.0,0.00011656,2]
[347662951,1736038238394,-500.0,0.0001167,2]
[347662952,1736038238403,-164.54376876,0.0001167,2]
[347662953,1736038238413,-1000.0,0.00011671,2]
[347662954,1736038238423,-150.0,0.00011674,2]
[347662955,1736038238431,-150.0,0.00011683,2]
[347662956,1736038238441,-150.0,0.00011683,2]
[347662957,1736038238451,-150.0,0.00011683,2]
[347662958,1736038238460,-150.0,0.00011698,2]
[347662959,1736038238469,-150.0,0.00011698,2]
[347662960,1736038238479,-150.0,0.000117,2]
[347662961,1736038238488,-400.0,0.000117,4]
[347662962,1736038238498,-150.0,0.00011701,2]
[347662963,1736038238508,-150.0,0.00011702,2]
[347662964,1736038238519,-150.0,0.00011703,2]
[347662965,1736038238528,-150.0,0.00011708,2]
[347662966,1736038238538,-40023.0134,0.0001172,2]
[347662967,1736038238547,-150.0,0.00011723,2]
[347662968,1736038238557,-477.67,0.00011725,2]
[347662969,1736038238567,-150.0,0.00011728,2]
[347662970,1736038238577,-150.0,0.00011737,2]
[347662971,1736038238587,-1500.0,0.00011746,2]
[347662972,1736038238597,-150.0,0.00011755,2]
[347662973,1736038238607,-466.2382699,0.00011758,2]
[347662974,1736038238616,-4134.3074215,0.00011758,2]
[347662975,1736038238626,-2564.7117722,0.00011758,2]
[347662976,1736038238636,-601.14383887,0.00011758,2]
[347662977,1736038238645,-289.6540833,0.00011758,2]
[347662978,1736038238655,-3980.0827919,0.00011758,2]
[347662979,1736038238664,-1500.0,0.00011759,2]
[347662980,1736038238673,-506.9,0.00011763,2]
[347662981,1736038238682,-72836.57451938,0.00011764,2]
[347662982,1736038238692,-151.0,0.00011764,2]
[347662983,1736038238702,-3000.0,0.00011764,2]
[347662984,1736038238712,-500.0,0.00011766,2]
[347662985,1736038238721,-500.0,0.00011766,2]
[347662986,1736038238732,-500.0,0.00011766,2]
[347662987,1736038238741,-500.0,0.00011766,2]
[347662988,1736038238751,-500.0,0.00011766,2]
[347662989,1736038238760,-3490.81,0.00011766,2]
[347662990,1736038238770,-500.0,0.00011766,2]
[347662991,1736038238779,-314.82741285,0.00011766,2]
[347662992,1736038238788,-500.0,0.00011766,2]
[347662993,1736038238798,-500.0,0.00011766,2]
[347662994,1736038238809,-195.64271379,0.00011766,2]
[347662995,1736038238820,-500.0,0.00011766,2]
[347662996,1736038238830,-161.3091848,0.00011766,2]
[347662997,1736038238839,-500.0,0.00011766,2]
[347662998,1736038238848,-500.0,0.00011766,2]
[347662999,1736038238859,-500.0,0.00011766,2]
[347663000,1736038238869,-372.34443776,0.00011766,2]
[347663001,1736038238878,-500.0,0.00011766,2]
[347663002,1736038238890,-82355.37821454,0.00011767,2]
[347663003,1736038238903,-10985.55453406,0.00011767,2]
[347663004,1736038238926,-2284.0,0.00011767,2]
[347663006,1736038239841,-361.44000017,0.00011767,2]
[347663007,1736038239898,-33928.70599424,0.00011767,2]
[347663008,1736038239910,-2878.69636717,0.00011767,2]
[347663009,1736038239922,-413.87230449,0.00011767,2]
[347663010,1736038239956,-652.01062997,0.00011767,2]
[347663011,1736038239968,-605.74425426,0.00011767,2]
[347663012,1736038239979,-264.79672554,0.00011767,2]
[347663013,1736038240069,-462.10239366,0.00011767,2]
[347663014,1736038240080,-1906.35,0.00011767,2]
[347663015,1736038240092,-8790.201,0.00011767,2]
[347663287,1736038242916,-3703.88611207,0.00011767,2]
[347663290,1736038242929,-61313.83972067,0.00011767,2]
[347663301,1736038243028,-2093.42174916,0.00011767,2]
[347663303,1736038243038,-202.0,0.0001177,2]
[347663305,1736038243047,-200.0,0.0001177,2]
[347663307,1736038243057,-6651.47834667,0.00011772,2]
[347663322,1736038243187,-9836.2,0.00011772,2]
[347663324,1736038243200,-2332.33001,0.00011772,2]
[347663479,1736038245765,-29975.47949696,0.00011772,2]
[347663481,1736038245877,-2969.58596513,0.00011772,2]
[347663482,1736038245934,-3125.29851977,0.00011772,2]
[347663483,1736038245945,-2420.53046252,0.00011772,2]
[347663484,1736038245994,-739.671769,0.00011772,2]
[347663485,1736038246098,-490.44515604,0.00011772,2]
[347663486,1736038246111,-362.44367779,0.00011772,2]
[347663619,1736038698998,8971.6,0.0002,120]
[347663621,1736038911220,5000.0,0.0002,120]
[347663632,1736039432178,-1405.99872858,8.621e-05,2]
[347663633,1736039432253,-68.67127142,8.621e-05,2]
[347663634,1736039432262,-351.91835358,9.862e-05,2]
[347663635,1736039432273,-148.08164642,9.862e-05,2]
[347663636,1736039432282,-600.0,9.862e-05,2]
[347663637,1736039432292,-204.30417198,0.00010137,2]
[347663638,1736039432309,-263.65582802,0.00010137,2]
[347663639,1736039432318,-358.24507198,0.00010177,2]
[347663640,1736039432399,-15.18692802,0.00010177,2]
[347663641,1736039432408,-150.0,0.00010177,2]
[347663642,1736039432418,-210.646416,0.00010418,2]
[347663643,1736039432427,-250.0,0.00010471,2]
[347663644,1736039432436,-275.16665318,0.00010498,2]
[347663645,1736039432447,-724.83334682,0.00010498,2]
[347663646,1736039432456,-5715.37581913,0.00010551,2]
[347663727,1736039438052,-2467.51418087,0.00010551,2]
[347663728,1736039438062,-217.92,0.00010623,2]
[347663729,1736039438073,-4017.58,0.00010701,2]
[347663730,1736039438082,-150.0,0.00010701,2]
[347663731,1736039438091,-150.0,0.00010701,2]
[347663732,1736039438100,-214.74,0.0001071,2]
[347663733,1736039438110,-250.0,0.00010735,2]
[347663734,1736039438119,-1474.67,0.00010885,2]
[347663735,1736039438128,-400.0,0.00010986,2]
[347663736,1736039438137,-24999.999999,0.00011,2]
[347663737,1736039438146,-972.7,0.0001105,2]
[347663738,1736039438155,-168.66,0.0001112,2]
[347663739,1736039438165,-380.185,0.0001118,2]
[347663740,1736039438174,-600.0,0.00011232,2]
[347663741,1736039438184,-150.0,0.00011296,2]
[347663742,1736039438194,-200.0,0.0001147,2]
[347663743,1736039438203,-3000.0,0.000115,3]
[347663744,1736039438213,-637.63314196,0.00011507,2]
[347663745,1736039438227,-372.15685804,0.00011507,2]
[347663746,1736039438235,-1157.07361701,0.000116,3]
[347663747,1736039438248,-131.92638299,0.000116,3]
[347663748,1736039438257,-2169.77361701,0.000116,2]
[347663749,1736039438271,-660.0,0.000116,2]
[347663750,1736039438283,-170.22638299,0.000116,2]
[347663751,1736039438293,-1000.0,0.000116,2]
[347663752,1736039438303,-230.0,0.000116,2]
[347663753,1736039438312,-365.0,0.000116,2]
[347663754,1736039438322,-1654.6421,0.00011672,2]
[347663755,1736039438331,-6868.3984,0.00011672,2]
[347663756,1736039438343,-8037.2573,0.00011672,2]
[347663757,1736039438352,-300.0,0.000117,2]
[347663758,1736039438363,-200.0,0.000117,3]
[347663759,1736039438374,-200.0,0.000117,2]
[347663760,1736039438384,-200.0,0.000117,4]
[347663761,1736039438393,-200.0,0.000117,5]
[347663762,1736039438403,-200.0,0.000117,6]
[347663763,1736039438412,-200.0,0.000117,2]
[347663765,1736039438421,-200.0,0.000117,3]
[347663767,1736039438430,-200.0,0.000117,5]
[347663769,1736039438439,-200.0,0.000117,2]
[347663771,1736039438449,-200.0,0.000117,3]
[347663773,1736039438458,-200.0,0.000117,3]
[347663775,1736039438467,-209.78,0.000117,5]
[347663777,1736039438476,-177.853907,0.000117,4]
[347663779,1736039438485,-25552.50872301,0.00011729,2]
[347663781,1736039438498,-493.37289415,0.00011729,2]
[347663783,1736039438507,-155.70293723,0.0001173,2]
[347663785,1736039438515,-344.24057138,0.00011737,2]
[347663787,1736039438525,-7721.6766268,0.00011766,2]
[347663789,1736039438534,-3345.36,0.00011766,2]
[347663790,1736039438543,-468.85096731,0.00011766,2]
[347663792,1736039438552,-500.0,0.00011766,2]
[347663793,1736039438562,-500.0,0.00011766,2]
[347663794,1736039438571,-500.0,0.00011766,2]
[347663795,1736039438581,-500.0,0.00011766,2]
[347663796,1736039438590,-208.03827086,0.00011771,2]
[347663797,1736039438599,-500.0,0.00011771,2]
[347663798,1736039438609,-500.0,0.00011771,2]
[347663799,1736039438618,-386.97,0.00011771,2]
[347663800,1736039438627,-500.0,0.00011771,2]
[347663801,1736039438637,-500.0,0.00011771,2]
[347663802,1736039438647,-500.0,0.00011771,2]
[347663803,1736039438657,-500.0,0.00011771,2]
[347663804,1736039438667,-500.0,0.00011771,2]
[347663805,1736039438676,-500.0,0.00011771,2]
[347663806,1736039438685,-500.0,0.00011771,2]
[347663807,1736039438696,-500.0,0.00011771,2]
[347663808,1736039438705,-464.88647728,0.00011771,2]
[347663809,1736039438715,-500.0,0.00011771,2]
[347663810,1736039438724,-500.0,0.00011771,2]
[347663811,1736039438734,-507.16,0.00011772,2]
[347663812,1736039438744,-255549.71339612,0.00011772,2]
[347663813,1736039438754,-3000.0,0.00011772,2]
[347663814,1736039438763,-490.57,0.00011772,2]
[347663815,1736039438772,-150.48,0.00011772,2]
[347663816,1736039438782,-1781.5746557,0.00011776,2]
[347663817,1736039438793,-241.378403,0.00011784,2]
[347663818,1736039438803,-388.5318916,0.00011784,2]
[347663819,1736039438812,-201.1486689,0.00011792,2]
[347663820,1736039438822,-2776.3730862,0.00011792,2]
[347663821,1736039438832,-200.0,0.000118,2]
[347663822,1736039438841,-60407.17375696,0.000118,2]
[347663823,1736039438850,-1000.0,0.0001181,2]
[347663824,1736039438862,-16190.51663519,0.0001182,2]
[347663825,1736039438872,-2937.22291895,0.00011827,2]
[347663826,1736039438881,-666.0,0.00011828,2]
[347663827,1736039438890,-61348.65951495,0.00011828,2]
[347663828,1736039438904,-9800.40098382,0.00011828,2]
[347663829,1736039438915,-3870.51540961,0.00011828,2]
[347663830,1736039438927,-3269.26409162,0.00011828,2]
[347663831,1736039438936,-666.0,0.00011828,2]
[347663832,1736039438945,-6934.90025592,0.00011828,2]
[347663833,1736039438955,-10688.02338127,0.00011828,2]
[347663836,1736039440058,-18371.08631116,0.00011828,2]
[347663837,1736039440070,-13006.91177127,0.00011828,2]
[347663838,1736039440203,-2776.70500011,0.00011828,2]
[347663839,1736039440214,-68491.9999999,0.00011828,2]
[347663840,1736039440226,-15289.53819694,0.00011828,2]
[347663852,1736039443215,-266.7099164,0.00011828,2]
[347663853,1736039443226,-901.45554085,0.00011828,2]
[347663854,1736039443275,-76993.56030693,0.00011828,2]
[347664145,1736039446194,-1377.824745,0.00011828,2]
[347664153,1736039446256,-500.3677651,0.00011828,2]
[347664155,1736039446268,-577.15662885,0.00011828,2]
[347664164,1736039446341,-44047.91219438,0.00011828,2]
[347664166,1736039446352,-234957.98319329,0.00011828,2]
[347665478,1736040336450,260.78,8e-05,2]
[347665480,1736040355947,15862.52743867,6.94e-05,2]
[347665499,1736040632439,-269.87461883,7.96e-05,2]
[347665500,1736040632451,-3730.12538117,8e-05,2]
[347665501,1736040632555,-1009.09461883,8e-05,2]
[347665502,1736040632565,-281.37741646,8.305e-05,2]
[347665503,1736040632576,-541.66966061,8.305e-05,2]
[347665504,1736040632588,-879.10033939,8.305e-05,2]
[347665505,1736040632598,-500.0,8.766e-05,2]
[347665506,1736040632608,-300.0,8.999e-05,2]
[347665507,1736040632619,-180.36323679,9e-05,2]
[347665508,1736040632631,-634.31936911,9e-05,2]
[347665509,1736040632641,-1389.42452212,9e-05,2]
[347665510,1736040632654,-1555.48465078,9e-05,2]
[347665512,1736040632842,-4060.22455921,9e-05,2]
[347665513,1736040632852,-3756.2609,9.772e-05,2]
[347665514,1736040632862,-600.0,9.862e-05,2]
[347665515,1736040632872,-30000.0,9.871e-05,2]
[347665516,1736040632882,-2414.8469,9.898e-05,2]
[347665517,1736040632892,-717.8093,9.898e-05,2]
[347665518,1736040632902,-304.0,9.899e-05,2]
[347665519,1736040632912,-500.0,9.977e-05,2]
[347665520,1736040632921,-459.0,9.998e-05,2]
[347665521,1736040632931,-459.0,9.998e-05,2]
[347665522,1736040632942,-459.0,9.998e-05,2]
[347665523,1736040632952,-459.0,9.998e-05,2]
[347665524,1736040632962,-459.0,9.998e-05,2]
[347665525,1736040632971,-459.0,9.998e-05,2]
[347665526,1736040632981,-459.0,9.998e-05,2]
[347665527,1736040632991,-459.0,9.998e-05,2]
[347665528,1736040633001,-459.0,9.998e-05,2]
[347665529,1736040633011,-459.0,9.998e-05,2]
[347665530,1736040633022,-459.0,9.998e-05,2]
[347665533,1736040633032,-459.0,9.998e-05,2]
[347665535,1736040633043,-459.0,9.998e-05,2]
[347665536,1736040633054,-459.0,9.998e-05,2]
[347665538,1736040633064,-326.0,9.998e-05,2]
[347665539,1736040633075,-326.0,9.998e-05,2]
[347665540,1736040633086,-326.0,9.998e-05,2]
[347665541,1736040633096,-326.0,9.998e-05,2]
[347665543,1736040633108,-326.0,9.998e-05,2]
[347665544,1736040633118,-326.0,9.998e-05,2]
[347665545,1736040633129,-326.0,9.998e-05,2]
[347665546,1736040633139,-326.0,9.998e-05,2]
[347665547,1736040633150,-326.0,9.998e-05,2]
[347665548,1736040633160,-326.0,9.998e-05,2]
[347665549,1736040633171,-326.0,9.998e-05,2]
[347665550,1736040633182,-326.0,9.998e-05,2]
[347665551,1736040633194,-326.0,9.998e-05,2]
[347665552,1736040633204,-326.0,9.998e-05,2]
[347665553,1736040633215,-459.0,9.998e-05,2]
[347665554,1736040633226,-459.0,9.998e-05,2]
[347665555,1736040633236,-459.0,9.998e-05,2]
[347665556,1736040633247,-459.0,9.998e-05,2]
[347665557,1736040633257,-459.0,9.998e-05,2]
[347665558,1736040633267,-459.0,9.998e-05,2]
[347665559,1736040633278,-459.0,9.998e-05,2]
[347665560,1736040633288,-459.0,9.998e-05,2]
[347665561,1736040633298,-459.0,9.998e-05,2]
[347665562,1736040633308,-459.0,9.998e-05,2]
[347665563,1736040633319,-459.0,9.998e-05,2]
[347665564,1736040633330,-459.0,9.998e-05,2]
[347665565,1736040633340,-459.0,9.998e-05,2]
[347665566,1736040633351,-459.0,9.998e-05,2]
[347665567,1736040633361,-326.0,9.998e-05,2]
[347665568,1736040633372,-326.0,9.998e-05,2]
[347665569,1736040633383,-326.0,9.998e-05,2]
[347665570,1736040633393,-326.0,9.998e-05,2]
[347665571,1736040633405,-326.0,9.998e-05,2]
[347665572,1736040633416,-326.0,9.998e-05,2]
[347665573,1736040633427,-326.0,9.998e-05,2]
[347665574,1736040633438,-326.0,9.998e-05,2]
[347665575,1736040633449,-326.0,9.998e-05,2]
[347665576,1736040633460,-326.0,9.998e-05,2]
[347665577,1736040633470,-326.0,9.998e-05,2]
[347665578,1736040633480,-326.0,9.998e-05,2]
[347665579,1736040633490,-326.0,9.998e-05,2]
[347665580,1736040633501,-326.0,9.998e-05,2]
[347665581,1736040633511,-459.0,9.998e-05,2]
[347665582,1736040633522,-459.0,9.998e-05,2]
[347665583,1736040633533,-459.0,9.998e-05,2]
[347665584,1736040633544,-459.0,9.998e-05,2]
[347665585,1736040633554,-459.0,9.998e-05,2]
[347665586,1736040633564,-459.0,9.998e-05,2]
[347665587,1736040633574,-459.0,9.998e-05,2]
[347665588,1736040633585,-459.0,9.998e-05,2]
[347665589,1736040633595,-459.0,9.998e-05,2]
[347665590,1736040633605,-459.0,9.998e-05,2]
[347665591,1736040633616,-459.0,9.998e-05,2]
[347665592,1736040633627,-459.0,9.998e-05,2]
[347665593,1736040633638,-459.0,9.998e-05,2]
[347665594,1736040633648,-326.0,9.998e-05,2]
[347665595,1736040633659,-326.0,9.998e-05,2]
[347665596,1736040633670,-326.0,9.998e-05,2]
[347665597,1736040633680,-326.0,9.998e-05,2]
[347665598,1736040633691,-326.0,9.998e-05,2]
[347665599,1736040633714,-326.0,9.998e-05,2]
[347665600,1736040633726,-326.0,9.998e-05,2]
[347665601,1736040633739,-326.0,9.998e-05,2]
[347665602,1736040633751,-326.0,9.998e-05,2]
[347665603,1736040633764,-326.0,9.998e-05,2]
[347665604,1736040633775,-326.0,9.998e-05,2]
[347665605,1736040633787,-326.0,9.998e-05,2]
[347665606,1736040633799,-326.0,9.998e-05,2]
[347665607,1736040633811,-459.0,9.998e-05,2]
[347665608,1736040633822,-459.0,9.998e-05,2]
[347665609,1736040633834,-459.0,9.998e-05,2]
[347665610,1736040633847,-459.0,9.998e-05,2]
[347665611,1736040633858,-459.0,9.998e-05,2]
[347665612,1736040633869,-459.0,9.998e-05,2]
[347665613,1736040633880,-459.0,9.998e-05,2]
[347665614,1736040634195,-459.0,9.998e-05,2]
[347665615,1736040634204,-459.0,9.998e-05,2]
[347665616,1736040634214,-459.0,9.998e-05,2]
[347665617,1736040634223,-459.0,9.998e-05,2]
[347665618,1736040634233,-459.0,9.998e-05,2]
[347665619,1736040634242,-459.0,9.998e-05,2]
[347665620,1736040634251,-459.0,9.998e-05,2]
[347665621,1736040634261,-326.0,9.998e-05,2]
[347665622,1736040634271,-326.0,9.998e-05,2]
[347665623,1736040634280,-326.0,9.998e-05,2]
[347665624,1736040634290,-326.0,9.998e-05,2]
[347665625,1736040634298,-326.0,9.998e-05,2]
[347665626,1736040634308,-326.0,9.998e-05,2]
[347665627,1736040634318,-326.0,9.998e-05,2]
[347665628,1736040634327,-326.0,9.998e-05,2]
[347665629,1736040634336,-326.0,9.998e-05,2]
[347665630,1736040634346,-326.0,9.998e-05,2]
[347665631,1736040634355,-326.0,9.998e-05,2]
[347665632,1736040634364,-326.0,9.998e-05,2]
[347665633,1736040634374,-326.0,9.998e-05,2]
[347665634,1736040634383,-326.0,9.998e-05,2]
[347665635,1736040634392,-459.0,9.998e-05,2]